[Event "Olomouc Chess Summer IM-B 2024"]
[Site "Olomouc"]
[Date "2024.08.15"]
[Round "7.15"]
[White "Ptacnikova, Lenka"]
[Black "Dukic, Zachary"]
[Result "0-1"]
[ECO "B07"]
[WhiteElo "2086"]
[BlackElo "2244"]
[Annotator "RC"]
[PlyCount "60"]
[EventDate "2024.08.10"]
[EventType "tourn"]
[EventCountry "CZE"]
[SourceTitle "playchess.com"]
[Source "ChessBase"]
[SourceQuality "1"]
[TimeControl "40/5400+30:1800+30"]

1. d4 {[%emt 0:01:35]} d6 {[%emt 0:00:21]} 2. e4 {[%emt 0:00:37]} Nf6 {[%emt 0:00:06]} 3. Nc3 {[%emt 0:00:08]} e5 {[%emt 0:00:06]} 4. dxe5 {[%emt 0:00:14]} dxe5 {[%emt 0:00:08]} 5. Qxd8+ {[%emt 0:00:08]} Kxd8 {[%emt 0:00:06]} 6. Bc4 {[%emt 0:00:14]} Bb4 {[%emt 0:00:07]} 7. Bxf7 {[%emt 0:00:45]} Rf8 {[%emt 0:00:15]} 8. Bb3 {[%emt 0:00:15]} Nxe4 {[%emt 0:00:06]} 9. Nge2 {[%emt 0:00:08]} Nc5 {[%emt 0:00:33]} 10. Bg5+ {[%emt 0:00:46]} Ke8 {[%emt 0:00:10]} 11. O-O-O {[%emt 0:08:53]} Nxb3+ {[%emt 0:00:52]} 12. axb3 {[%emt 0:00:15]} Nc6 {[%emt 0:00:09]} 13. Nd5 {[%emt 0:06:15]} Bd6 {[%emt 0:00:12]} 14. f4 {[%emt 0:08:32]} Bg4 {[%emt 0:21:23]} 15. Rhe1 {[%emt 0:04:11]} Kd7 {[%emt 0:00:40]} 16. h3 {[%emt 0:08:09]} Bxe2 {[%emt 0:07:10]} 17. Rxe2 {[%emt 0:00:10]} Rae8 {[%emt 0:00:18]} 18. fxe5 {[%emt 0:07:43]} Nxe5 {[%emt 0:06:40]} 19. Be3 {[%emt 0:09:19]} Ng6 {[%emt 0:02:40]} 20. Red2 {[%emt 0:04:14]} Rf5 {[%emt 0:04:24]} 21. Bg1 {[%emt 0:03:39]} Kc6 {[%emt 0:10:21]} 22. Rd4 {[%emt 0:11:00]} b6 {[%emt 0:01:55]} 23. Rc4+ {[%emt 0:12:35]} Kb7 {[%emt 0:00:20]} 24. Nc3 {[%emt 0:04:21]} Nf4 {[%emt 0:08:02]} 25. Bh2 {[%emt 0:07:45]} Ne2+ {[%emt 0:08:05]} 26. Nxe2 {[%emt 0:00:05]} Bxh2 {[%emt 0:00:05]} 27. Nc3 {[%emt 0:01:24]} Rf2 {[%emt 0:01:24]} 28. g4 {[%emt 0:00:36]} g5 {[%emt 0:06:21]} 29. Kb1 {[%emt 0:00:04]} Rf3 {[%emt 0:01:40]} 30. Ne4 {[%emt 0:00:14]} h6 {[%emt 0:00:18]} 0-1

[Event "Olomouc Chess Summer IM-B 2024"]
[Site "Olomouc"]
[Date "2024.08.16"]
[Round "8.11"]
[White "Jurek, Josef"]
[Black "Dukic, Zachary"]
[Result "1/2-1/2"]
[ECO "A49"]
[WhiteElo "2191"]
[BlackElo "2244"]
[Annotator "ChessBase"]
[PlyCount "110"]
[EventDate "2024.08.10"]
[EventType "tourn"]
[EventCountry "CZE"]
[SourceTitle "playchess.com"]
[Source "ChessBase"]
[SourceQuality "1"]
[TimeControl "40/5400+30:1800+30"]

1. Nf3 {[%emt 0:00:10]} d6 {[%emt 0:00:06]} 2. d4 {[%emt 0:00:16]} Nf6 {[%emt 0:00:05]} 3. g3 {[%emt 0:01:14]} g6 {[%emt 0:00:06]} 4. b3 {[%emt 0:00:35]} Bg7 {[%emt 0:00:14]} 5. Bb2 {[%emt 0:00:12]} b5 {[%emt 0:02:23]} 6. Bg2 {[%emt 0:02:01]} Bb7 {[%emt 0:00:08]} 7. O-O {[%emt 0:02:29]} Nbd7 {[%emt 0:01:36]} 8. Nbd2 {[%emt 0:01:19]} O-O {[%emt 0:00:15]} 9. Re1 {[%emt 0:02:19]} c5 {[%emt 0:04:00]} 10. e4 {[%emt 0:02:54]} cxd4 {[%emt 0:00:07]} 11. Nxd4 {[%emt 0:00:24]} Qb6 {[%emt 0:00:08]} 12. a4 {[%emt 0:08:26]} a6 {[%emt 0:18:42]} 13. axb5 {[%emt 0:03:49]} axb5 {[%emt 0:00:08]} 14. Qe2 {[%emt 0:01:54]} Rxa1 {[%emt 0:15:53]} 15. Bxa1 {[%emt 0:01:05]} Ra8 {[%emt 0:02:03]} 16. Nxb5 {[%emt 0:10:45]} Ba6 {[%emt 0:16:37]} 17. c4 {[%emt 0:01:50]} Bxb5 {[%emt 0:00:33]} 18. cxb5 {[%emt 0:00:13]} Ra2 {[%emt 0:00:17]} 19. Bc3 {[%emt 0:05:31]} Nxe4 {[%emt 0:02:37]} 20. Bxg7 {[%emt 0:13:34]} Rxd2 {[%emt 0:00:12]} 21. Qe3 {[%emt 0:02:27]} Qxe3 {[%emt 0:01:12]} 22. fxe3 {[%emt 0:01:06]} Kxg7 {[%emt 0:15:48]} 23. Bxe4 {[%emt 0:01:16]} Rb2 {[%emt 0:00:37]} 24. Rb1 {[%emt 0:17:52]} Rxb1+ {[%emt 0:00:08]} 25. Bxb1 {[%emt 0:00:06]} Kf6 {[%emt 0:04:39]} 26. Kf2 {[%emt 0:00:44]} Ke5 {[%emt 0:00:15]} 27. b4 {[%emt 0:00:52]} d5 {[%emt 0:01:35]} 28. Ke2 {[%emt 0:00:50]} d4 {[%emt 0:02:39]} 29. Ba2 {[%emt 0:03:19]} e6 {[%emt 0:02:03]} 30. Kd3 {[%emt 0:00:47]} dxe3 {[%emt 0:00:10]} 31. Kxe3 {[%emt 0:00:08]} Nb6 {[%emt 0:01:48]} 32. Kd3 {[%emt 0:02:14]} f5 {[%emt 0:04:25]} 33. Bb3 {[%emt 0:01:37]} g5 {[%emt 0:00:10]} 34. h3 {[%emt 0:02:27]} h5 {[%emt 0:01:21]} 35. Bd1 {[%emt 0:02:05]} g4 {[%emt 0:01:51]} 36. hxg4 {[%emt 0:00:20]} hxg4 {[%emt 0:00:28]} 37. Bb3 {[%emt 0:01:43]} Kd6 {[%emt 0:00:55]} 38. Kd4 {[%emt 0:03:44]} e5+ {[%emt 0:00:25]} 39. Ke3 {[%emt 0:03:20]} Nd5+ {[%emt 0:00:23]} 40. Ke2 {[%emt 0:01:33]} Nxb4 {[%emt 0:00:26]} 41. b6 {[%emt 0:30:43]} Kc6 {[%emt 0:31:06]} 42. Kd2 {[%emt 0:00:00]} Kd6 {[%emt 0:00:00]} 43. Ke3 {[%emt 0:00:00]} Nc6 {[%emt 0:00:00]} 44. Ba4 {[%emt 0:00:00]} Ne7 {[%emt 0:00:00]} 45. Kf2 {[%emt 0:00:00]} e4 {[%emt 0:00:00]} 46. Be8 {[%emt 0:00:00]} Nd5 {[%emt 0:00:01]} 47. Bg6 {[%emt 0:00:00]} e3+ {[%emt 0:00:16]} 48. Kf1 {[%emt 0:00:00]} f4 {[%emt 0:04:07]} 49. Bf7 {[%emt 0:00:00]} Nxb6 {[%emt 0:01:27]} 50. gxf4 {[%emt 0:00:00]} g3 {[%emt 0:00:30]} 51. Bh5 {[%emt 0:00:00]} Nd5 {[%emt 0:00:24]} 52. Kg2 {[%emt 0:00:00]} Nxf4+ {[%emt 0:00:20]} 53. Kxg3 {[%emt 0:00:00]} Nxh5+ {[%emt 0:00:32]} 54. Kf3 {[%emt 0:00:04]} e2 {[%emt 0:00:05]} 55. Kxe2 {[%emt 0:00:05]} Ke5 {[%emt 0:01:44]} 1/2-1/2

[Event "Olomouc Chess Summer IM-B 2024"]
[Site "Olomouc"]
[Date "2024.08.16"]
[Round "8.12"]
[White "Zavurka, Roman"]
[Black "Ptacnikova, Lenka"]
[Result "1-0"]
[ECO "A48"]
[WhiteElo "2191"]
[BlackElo "2086"]
[Annotator "ChessBase"]
[PlyCount "135"]
[EventDate "2024.08.10"]
[EventType "tourn"]
[EventCountry "CZE"]
[SourceTitle "playchess.com"]
[Source "ChessBase"]
[SourceQuality "1"]
[TimeControl "40/5400+30:1800+30"]

1. d4 {[%emt 0:00:05]} Nf6 {[%emt 0:00:03]} 2. Nf3 {[%emt 0:00:10]} g6 {[%emt 0:00:22]} 3. Bf4 {[%emt 0:00:20]} Bg7 {[%emt 0:00:10]} 4. e3 {[%emt 0:00:09]} b6 {[%emt 0:01:27]} 5. Be2 {[%emt 0:00:35]} Bb7 {[%emt 0:00:09]} 6. h3 {[%emt 0:00:12]} O-O {[%emt 0:04:49]} 7. O-O {[%emt 0:00:12]} d6 {[%emt 0:01:14]} 8. c3 {[%emt 0:00:23]} Nc6 {[%emt 0:04:27]} 9. a4 {[%emt 0:01:16]} a5 {[%emt 0:00:33]} 10. Nbd2 {[%emt 0:00:57]} Nd5 {[%emt 0:01:43]} 11. Bg3 {[%emt 0:01:10]} e5 {[%emt 0:00:06]} 12. Qb3 {[%emt 0:02:18]} Nde7 {[%emt 0:06:34]} 13. Bb5 {[%emt 0:11:38]} e4 {[%emt 0:11:56]} 14. Nxe4 {[%emt 0:06:59]} Nxd4 {[%emt 0:00:57]} 15. Nxd4 {[%emt 0:03:50]} Bxe4 {[%emt 0:00:21]} 16. Bh4 {[%emt 0:00:26]} c5 {[%emt 0:10:28]} 17. Bc6 {[%emt 0:13:18]} cxd4 {[%emt 0:00:21]} 18. Bxe4 {[%emt 0:00:41]} d5 {[%emt 0:04:07]} 19. Bxe7 {[%emt 0:03:40]} Qxe7 {[%emt 0:00:04]} 20. Bxd5 {[%emt 0:00:19]} dxc3 {[%emt 0:00:05]} 21. Bxa8 {[%emt 0:01:17]} cxb2 {[%emt 0:00:04]} 22. Rab1 {[%emt 0:01:18]} Rxa8 {[%emt 0:00:06]} 23. Qxb6 {[%emt 0:00:52]} h5 {[%emt 0:01:25]} 24. Rxb2 {[%emt 0:05:02]} Bxb2 {[%emt 0:00:05]} 25. Qxb2 {[%emt 0:00:07]} Qb4 {[%emt 0:00:20]} 26. Qc2 {[%emt 0:00:32]} Rb8 {[%emt 0:06:18]} 27. Rd1 {[%emt 0:01:08]} Kg7 {[%emt 0:00:29]} 28. Kh2 {[%emt 0:09:52]} Re8 {[%emt 0:04:30]} 29. Rb1 {[%emt 0:03:06]} Qe4 {[%emt 0:01:01]} 30. Qb3 {[%emt 0:04:03]} Qe5+ {[%emt 0:02:35]} 31. Kg1 {[%emt 0:00:20]} Rd8 {[%emt 0:01:41]} 32. Rd1 {[%emt 0:01:43]} Rb8 {[%emt 0:08:10]} 33. Qd5 {[%emt 0:02:09]} Qc3 {[%emt 0:01:15]} 34. Qd4+ {[%emt 0:04:55]} Qxd4 {[%emt 0:02:29]} 35. Rxd4 {[%emt 0:00:12]} Rb1+ {[%emt 0:03:20]} 36. Kh2 {[%emt 0:00:08]} Ra1 {[%emt 0:00:12]} 37. Kg3 {[%emt 0:00:34]} Ra2 {[%emt 0:00:19]} 38. h4 {[%emt 0:01:30]} Kf6 {[%emt 0:01:13]} 39. f3 {[%emt 0:02:33]} Ke6 {[%emt 0:01:36]} 40. e4 {[%emt 0:01:00]} Kf6 {[%emt 0:04:33]} 41. Kf4 {[%emt 0:37:50]} Ke6 {[%emt 0:39:47]} 42. g3 {[%emt 0:01:22]} Ra3 {[%emt 0:02:11]} 43. Rc4 {[%emt 0:07:54]} Kf6 {[%emt 0:02:18]} 44. g4 {[%emt 0:02:39]} hxg4 {[%emt 0:00:49]} 45. fxg4 {[%emt 0:01:23]} Ra1 {[%emt 0:04:29]} 46. e5+ {[%emt 0:00:00]} Ke6 {[%emt 0:00:00]} 47. Kg5 {[%emt 0:00:00]} Kxe5 {[%emt 0:00:00]} 48. Rc5+ {[%emt 0:00:00]} Ke6 {[%emt 0:00:00]} 49. Rxa5 {[%emt 0:00:00]} Ke7 {[%emt 0:00:00]} 50. Re5+ {[%emt 0:00:00]} Kf8 {[%emt 0:00:00]} 51. Re4 {[%emt 0:00:00]} Kg7 {[%emt 0:00:00]} 52. Kf4 {[%emt 0:00:00]} Rh1 {[%emt 0:00:00]} 53. Ke5 {[%emt 0:00:00]} Rxh4 {[%emt 0:00:00]} 54. a5 {[%emt 0:00:00]} Rh8 {[%emt 0:00:00]} 55. a6 {[%emt 0:00:00]} Ra8 {[%emt 0:01:46]} 56. Ra4 {[%emt 0:00:00]} Re8+ {[%emt 0:00:03]} 57. Kf4 {[%emt 0:00:00]} f6 {[%emt 0:01:09]} 58. Rb4 {[%emt 0:00:00]} g5+ {[%emt 0:01:30]} 59. Kf3 {[%emt 0:00:00]} Kg6 {[%emt 0:01:23]} 60. a7 {[%emt 0:00:00]} Ra8 {[%emt 0:00:24]} 61. Ra4 {[%emt 0:00:00]} Kf7 {[%emt 0:00:37]} 62. Ke4 {[%emt 0:00:00]} Re8+ {[%emt 0:00:38]} 63. Kd5 {[%emt 0:00:00]} Ra8 {[%emt 0:00:21]} 64. Ra5 {[%emt 0:00:17]} f5 {[%emt 0:00:42]} 65. gxf5 {[%emt 0:00:30]} Kf6 {[%emt 0:00:40]} 66. Ke4 {[%emt 0:00:17]} Re8+ {[%emt 0:00:39]} 67. Kf3 {[%emt 0:00:11]} Ra8 {[%emt 0:00:07]} 68. Kg4 {[%emt 0:08:36]} 1-0

[Event "Olomouc Chess Summer IM-B 2024"]
[Site "Olomouc"]
[Date "2024.08.16"]
[Round "8.13"]
[White "Schernthaner, David"]
[Black "Ihnat, Marek"]
[Result "1-0"]
[ECO "B90"]
[WhiteElo "2331"]
[BlackElo "2097"]
[Annotator "RC"]
[PlyCount "51"]
[EventDate "2024.08.10"]
[EventType "tourn"]
[EventCountry "CZE"]
[SourceTitle "playchess.com"]
[Source "ChessBase"]
[SourceQuality "1"]
[TimeControl "40/5400+30:1800+30"]

1. e4 {[%emt 0:00:02]} c5 {[%emt 0:00:07]} 2. Nf3 {[%emt 0:00:20]} d6 {[%emt 0:00:09]} 3. d4 {[%emt 0:00:06]} cxd4 {[%emt 0:00:05]} 4. Nxd4 {[%emt 0:00:04]} Nf6 {[%emt 0:00:08]} 5. Nc3 {[%emt 0:00:03]} a6 {[%emt 0:01:40]} 6. h3 {[%emt 0:05:20]} e5 {[%emt 0:00:34]} 7. Nde2 {[%emt 0:03:41]} h5 {[%emt 0:01:46]} 8. Bg5 {[%emt 0:00:59]} Be7 {[%emt 0:03:40]} 9. Bxf6 {[%emt 0:02:00]} Bxf6 {[%emt 0:01:41]} 10. Qd3 {[%emt 0:03:24]} Nc6 {[%emt 0:05:09]} 11. O-O-O {[%emt 0:08:14]} Be7 {[%emt 0:05:21]} 12. Nd5 {[%emt 0:02:02]} Be6 {[%emt 0:02:54]} 13. Kb1 {[%emt 0:01:48]} Rc8 {[%emt 0:00:37]} 14. f4 {[%emt 0:12:32]} Qa5 {[%emt 0:14:30]} 15. a3 {[%emt 0:04:11]} Bxd5 {[%emt 0:19:47]} 16. exd5 {[%emt 0:02:03]} Nb8 {[%emt 0:00:47]} 17. fxe5 {[%emt 0:01:55]} dxe5 {[%emt 0:01:07]} 18. Ng3 {[%emt 0:10:22]} g6 {[%emt 0:05:49]} 19. d6 {[%emt 0:07:02]} Rd8 {[%emt 0:01:08]} 20. Qf3 {[%emt 0:00:27]} Rxd6 {[%emt 0:02:58]} 21. Rxd6 {[%emt 0:00:27]} Bxd6 {[%emt 0:00:13]} 22. Qf6 {[%emt 0:04:38]} Qe1+ {[%emt 0:06:39]} 23. Ka2 {[%emt 0:00:04]} O-O {[%emt 0:04:52]} 24. Nxh5 {[%emt 0:00:15]} gxh5 {[%emt 0:00:05]} 25. Qg5+ {[%emt 0:00:09]} Kh8 {[%emt 0:01:48]} 26. Bd3 {[%emt 0:00:37]} 1-0

[Event "Olomouc Chess Summer IM-B 2024"]
[Site "Olomouc"]
[Date "2024.08.16"]
[Round "8.14"]
[White "Biolek, Richard Jr."]
[Black "Leitgeb, Julian"]
[Result "1/2-1/2"]
[ECO "D02"]
[WhiteElo "2417"]
[BlackElo "2313"]
[Annotator "RC"]
[PlyCount "30"]
[EventDate "2024.08.10"]
[EventType "tourn"]
[EventCountry "CZE"]
[SourceTitle "playchess.com"]
[Source "ChessBase"]
[SourceQuality "1"]
[TimeControl "40/5400+30:1800+30"]

1. d4 {[%emt 0:01:03]} d5 {[%emt 0:00:07]} 2. Nf3 {[%emt 0:00:06]} Nf6 {[%emt 0:00:35]} 3. g3 {[%emt 0:01:05]} c5 {[%emt 0:03:26]} 4. c4 {[%emt 0:00:53]} cxd4 {[%emt 0:07:06]} 5. cxd5 {[%emt 0:00:36]} Qxd5 {[%emt 0:02:47]} 6. Qxd4 {[%emt 0:00:09]} Nc6 {[%emt 0:03:35]} 7. Qxd5 {[%emt 0:00:04]} Nxd5 {[%emt 0:00:06]} 8. Bg2 {[%emt 0:00:15]} g6 {[%emt 0:02:33]} 9. Bd2 {[%emt 0:07:30]} Bg7 {[%emt 0:01:14]} 10. Nc3 {[%emt 0:00:54]} Nxc3 {[%emt 0:04:33]} 11. Bxc3 {[%emt 0:00:19]} Bxc3+ {[%emt 0:04:35]} 12. bxc3 {[%emt 0:00:03]} Bd7 {[%emt 0:03:10]} 13. Rb1 {[%emt 0:14:40]} Rb8 {[%emt 0:06:58]} 14. Nd4 {[%emt 0:05:26]} Na5 {[%emt 0:02:52]} 15. Nb3 {[%emt 0:07:03]} Nxb3 {[%emt 0:22:56]} 1/2-1/2

[Event "Olomouc Chess Summer IM-B 2024"]
[Site "Olomouc"]
[Date "2024.08.16"]
[Round "8.15"]
[White "Plischki, Sebastian"]
[Black "Delgerdalai, Bayarjavkhlan"]
[Result "1/2-1/2"]
[ECO "A07"]
[WhiteElo "2325"]
[BlackElo "2278"]
[Annotator "ChessBase"]
[PlyCount "133"]
[EventDate "2024.08.10"]
[EventType "tourn"]
[EventCountry "CZE"]
[SourceTitle "playchess.com"]
[Source "ChessBase"]
[SourceQuality "1"]
[TimeControl "40/5400+30:1800+30"]

1. Nf3 {[%emt 0:00:04]} d5 {[%emt 0:00:07]} 2. g3 {[%emt 0:00:12]} Bg4 {[%emt 0:00:38]} 3. Bg2 {[%emt 0:00:26]} Nd7 {[%emt 0:00:05]} 4. c4 {[%emt 0:00:50]} e6 {[%emt 0:00:38]} 5. cxd5 {[%emt 0:00:24]} exd5 {[%emt 0:00:06]} 6. O-O {[%emt 0:00:15]} Ngf6 {[%emt 0:00:26]} 7. d3 {[%emt 0:00:56]} Bc5 {[%emt 0:02:38]} 8. Qb3 {[%emt 0:01:39]} Bb6 {[%emt 0:00:57]} 9. Nc3 {[%emt 0:00:24]} Nc5 {[%emt 0:03:22]} 10. Qc2 {[%emt 0:00:55]} c6 {[%emt 0:05:04]} 11. h3 {[%emt 0:02:01]} Bxf3 {[%emt 0:01:23]} 12. Bxf3 {[%emt 0:00:21]} Ne6 {[%emt 0:01:32]} 13. Bg2 {[%emt 0:01:52]} O-O {[%emt 0:00:48]} 14. Kh2 {[%emt 0:05:57]} Re8 {[%emt 0:06:32]} 15. e3 {[%emt 0:06:05]} d4 {[%emt 0:03:05]} 16. Na4 {[%emt 0:02:00]} dxe3 {[%emt 0:00:29]} 17. Nxb6 {[%emt 0:00:09]} Nd4 {[%emt 0:19:39]} 18. Qc4 {[%emt 0:07:44]} e2 {[%emt 0:02:44]} 19. Re1 {[%emt 0:05:05]} axb6 {[%emt 0:05:01]} 20. Be3 {[%emt 0:00:24]} Nf5 {[%emt 0:00:48]} 21. Rxe2 {[%emt 0:02:00]} Nxe3 {[%emt 0:03:44]} 22. Rxe3 {[%emt 0:05:06]} Rxe3 {[%emt 0:01:12]} 23. fxe3 {[%emt 0:00:07]} Qd6 {[%emt 0:06:32]} 24. Rf1 {[%emt 0:05:20]} Qe5 {[%emt 0:12:52]} 25. Qf4 {[%emt 0:08:32]} Qxf4 {[%emt 0:03:30]} 26. Rxf4 {[%emt 0:00:06]} Rxa2 {[%emt 0:00:14]} 27. Rb4 {[%emt 0:00:12]} b5 {[%emt 0:03:11]} 28. d4 {[%emt 0:11:16]} Ra4 {[%emt 0:00:49]} 29. Rb3 {[%emt 0:00:56]} Kf8 {[%emt 0:06:37]} 30. g4 {[%emt 0:00:12]} h6 {[%emt 0:03:13]} 31. Kg3 {[%emt 0:00:14]} Ke7 {[%emt 0:00:26]} 32. h4 {[%emt 0:04:05]} Kd6 {[%emt 0:04:15]} 33. g5 {[%emt 0:00:43]} hxg5 {[%emt 0:00:04]} 34. hxg5 {[%emt 0:00:06]} Nd7 {[%emt 0:01:03]} 35. Rd3 {[%emt 0:04:38]} Ra2 {[%emt 0:01:21]} 36. b3 {[%emt 0:00:45]} Rc2 {[%emt 0:01:40]} 37. e4 {[%emt 0:01:30]} b4 {[%emt 0:00:50]} 38. e5+ {[%emt 0:01:09]} Ke7 {[%emt 0:00:05]} 39. Be4 {[%emt 0:02:00]} Nb6 {[%emt 0:01:35]} 40. Kf4 {[%emt 0:03:56]} Ke6 {[%emt 0:00:41]} 41. Bf5+ {[%emt 0:31:10]} Ke7 {[%emt 0:00:48]} 42. Be4 {[%emt 0:00:00]} Nd5+ {[%emt 0:04:05]} 43. Bxd5 {[%emt 0:00:00]} cxd5 {[%emt 0:00:02]} 44. g6 {[%emt 0:00:00]} fxg6 {[%emt 0:20:31]} 45. Rg3 {[%emt 0:00:00]} Rc6 {[%emt 0:06:30]} 46. Rg1 {[%emt 0:00:00]} Kd7 {[%emt 0:01:04]} 47. Rh1 {[%emt 0:00:00]} Ke6 {[%emt 0:00:31]} 48. Rh8 {[%emt 0:00:00]} Rc3 {[%emt 0:00:29]} 49. Rd8 {[%emt 0:00:00]} Rc6 {[%emt 0:00:32]} 50. Kg5 {[%emt 0:00:00]} Ra6 {[%emt 0:00:29]} 51. Kxg6 {[%emt 0:03:34]} Ra3 {[%emt 0:00:18]} 52. Rd6+ {[%emt 0:00:33]} Ke7 {[%emt 0:00:00]} 53. Rxd5 {[%emt 0:00:16]} Rxb3 {[%emt 0:00:05]} 54. Rb5 {[%emt 0:00:54]} Ke6 {[%emt 0:01:15]} 55. Kxg7 {[%emt 0:02:25]} Rg3+ {[%emt 0:00:13]} 56. Kf8 {[%emt 0:00:15]} b3 {[%emt 0:01:07]} 57. Rxb7 {[%emt 0:00:58]} Rd3 {[%emt 0:00:27]} 58. Rb6+ {[%emt 0:10:24]} Kd5 {[%emt 0:00:28]} 59. e6 {[%emt 0:00:41]} Rf3+ {[%emt 0:00:25]} 60. Ke8 {[%emt 0:02:07]} Kxd4 {[%emt 0:00:21]} 61. Kd7 {[%emt 0:00:52]} Re3 {[%emt 0:00:30]} 62. e7 {[%emt 0:00:12]} Rxe7+ {[%emt 0:00:30]} 63. Kxe7 {[%emt 0:00:06]} Kc3 {[%emt 0:00:02]} 64. Kd6 {[%emt 0:00:23]} b2 {[%emt 0:00:06]} 65. Kd5 {[%emt 0:00:19]} Kc2 {[%emt 0:00:05]} 66. Rxb2+ {[%emt 0:00:17]} Kxb2 {[%emt 0:00:36]} 67. Ke4 {[%emt 0:00:19]} 1/2-1/2

[Event "Olomouc Chess Summer IM-B 2024"]
[Site "Olomouc"]
[Date "2024.08.17"]
[Round "9.11"]
[White "Delgerdalai, Bayarjavkhlan"]
[Black "Jurek, Josef"]
[Result "1-0"]
[ECO "C02"]
[WhiteElo "2278"]
[BlackElo "2191"]
[Annotator "RC"]
[PlyCount "141"]
[EventDate "2024.08.10"]
[EventType "tourn"]
[EventCountry "CZE"]
[SourceTitle "playchess.com"]
[Source "ChessBase"]
[SourceQuality "1"]
[TimeControl "40/5400+30:1800+30"]

1. e4 {[%emt 0:00:04]} e6 {[%emt 0:00:12]} 2. d4 {[%emt 0:00:05]} d5 {[%emt 0:00:11]} 3. e5 {[%emt 0:00:06]} c5 {[%emt 0:00:15]} 4. c3 {[%emt 0:00:05]} Nc6 {[%emt 0:00:14]} 5. Nf3 {[%emt 0:00:06]} Bd7 {[%emt 0:00:16]} 6. Be2 {[%emt 0:00:06]} Nge7 {[%emt 0:00:33]} 7. Na3 {[%emt 0:00:29]} cxd4 {[%emt 0:01:52]} 8. cxd4 {[%emt 0:00:44]} Nf5 {[%emt 0:00:37]} 9. Nc2 {[%emt 0:00:06]} Qb6 {[%emt 0:02:14]} 10. O-O {[%emt 0:05:34]} Na5 {[%emt 0:01:16]} 11. g4 {[%emt 0:11:56]} Ne7 {[%emt 0:00:31]} 12. b3 {[%emt 0:04:50]} h5 {[%emt 0:02:53]} 13. h3 {[%emt 0:00:45]} Bb5 {[%emt 0:04:07]} 14. Be3 {[%emt 0:01:37]} Bxe2 {[%emt 0:02:32]} 15. Qxe2 {[%emt 0:00:06]} hxg4 {[%emt 0:07:06]} 16. hxg4 {[%emt 0:00:09]} Ng6 {[%emt 0:01:05]} 17. Kg2 {[%emt 0:20:13]} Be7 {[%emt 0:04:13]} 18. Rh1 {[%emt 0:01:03]} O-O-O {[%emt 0:01:10]} 19. Rh5 {[%emt 0:01:36]} Kb8 {[%emt 0:08:06]} 20. Rah1 {[%emt 0:00:45]} Rc8 {[%emt 0:04:33]} 21. Rxh8 {[%emt 0:11:49]} Rxh8 {[%emt 0:02:46]} 22. Rxh8+ {[%emt 0:00:26]} Nxh8 {[%emt 0:00:11]} 23. Nfe1 {[%emt 0:00:28]} Ng6 {[%emt 0:10:04]} 24. f4 {[%emt 0:00:30]} Nc6 {[%emt 0:01:50]} 25. Nf3 {[%emt 0:13:32]} Qa6 {[%emt 0:05:55]} 26. Qxa6 {[%emt 0:00:34]} bxa6 {[%emt 0:00:10]} 27. Kg3 {[%emt 0:02:35]} Nf8 {[%emt 0:04:17]} 28. f5 {[%emt 0:00:20]} Kc8 {[%emt 0:01:52]} 29. Ng5 {[%emt 0:09:08]} Bxg5 {[%emt 0:01:51]} 30. Bxg5 {[%emt 0:00:02]} Kd7 {[%emt 0:05:10]} 31. Bc1 {[%emt 0:01:35]} Ke8 {[%emt 0:03:32]} 32. Ba3 {[%emt 0:02:10]} Nd7 {[%emt 0:01:41]} 33. Kf4 {[%emt 0:00:30]} Nf8 {[%emt 0:05:28]} 34. Bd6 {[%emt 0:05:21]} Nd7 {[%emt 0:01:39]} 35. Ba3 {[%emt 0:03:32]} Nf8 {[%emt 0:01:10]} 36. Kg5 {[%emt 0:00:24]} Nh7+ {[%emt 0:02:35]} 37. Kh5 {[%emt 0:00:04]} Nf8 {[%emt 0:01:25]} 38. Bc5 {[%emt 0:04:43]} Nd7 {[%emt 0:04:44]} 39. Bd6 {[%emt 0:01:00]} Nf8 {[%emt 0:01:03]} 40. Ba3 {[%emt 0:00:45]} g6+ {[%emt 0:04:46]} 41. Kg5 {[%emt 0:10:28]} gxf5 {[%emt 0:01:15]} 42. gxf5 {[%emt 0:03:18]} Nd7 {[%emt 0:04:11]} 43. f6 {[%emt 0:02:56]} a5 {[%emt 0:03:31]} 44. Bd6 {[%emt 0:06:23]} Nb6 {[%emt 0:05:07]} 45. a4 {[%emt 0:02:49]} Nd7 {[%emt 0:02:09]} 46. Kh6 {[%emt 0:02:35]} Nb6 {[%emt 0:03:59]} 47. Kg7 {[%emt 0:00:39]} Nd7 {[%emt 0:00:54]} 48. Kg8 {[%emt 0:02:21]} Nb6 {[%emt 0:01:03]} 49. Ba3 {[%emt 0:00:47]} Nd7 {[%emt 0:02:45]} 50. Bb2 {[%emt 0:02:03]} Nf8 {[%emt 0:01:29]} 51. Ne3 {[%emt 0:00:37]} Ng6 {[%emt 0:01:41]} 52. Ng4 {[%emt 0:00:23]} Nh4 {[%emt 0:08:51]} 53. Nh6 {[%emt 0:01:08]} Nd8 {[%emt 0:00:42]} 54. Bc3 {[%emt 0:00:18]} Nf5 {[%emt 0:00:22]} 55. Nxf5 {[%emt 0:00:40]} exf5 {[%emt 0:00:12]} 56. Bxa5 {[%emt 0:00:09]} Ne6 {[%emt 0:00:47]} 57. Bc3 {[%emt 0:00:53]} f4 {[%emt 0:00:55]} 58. b4 {[%emt 0:00:35]} f3 {[%emt 0:01:06]} 59. Be1 {[%emt 0:00:04]} Nxd4 {[%emt 0:00:59]} 60. b5 {[%emt 0:00:11]} Ne6 {[%emt 0:01:17]} 61. a5 {[%emt 0:00:07]} d4 {[%emt 0:00:41]} 62. b6 {[%emt 0:00:31]} axb6 {[%emt 0:00:25]} 63. a6 {[%emt 0:01:31]} d3 {[%emt 0:00:41]} 64. a7 {[%emt 0:00:09]} Nc7 {[%emt 0:00:08]} 65. e6 {[%emt 0:00:26]} d2 {[%emt 0:00:57]} 66. exf7+ {[%emt 0:00:32]} Kd7 {[%emt 0:00:07]} 67. Bxd2 {[%emt 0:00:22]} f2 {[%emt 0:00:08]} 68. f8=Q {[%emt 0:00:24]} f1=Q {[%emt 0:00:09]} 69. Qe7+ {[%emt 0:00:37]} Kc8 {[%emt 0:00:52]} 70. f7 {[%emt 0:00:44]} Qc4 {[%emt 0:01:24]} 71. Bf4 {[%emt 0:00:13]} 1-0